Cogmind - Beta 14 @@@ ROGUE MODE // 2024.08.19 @ 23:31:57 Player: JohnnyDongs Result: Destroyed by Y-45 Defender with Heavy Assault Rifle Performance ------------- Evolutions (1) 500 Regions Visited (2) 400 Robots Destroyed (14) 70 Value Destroyed (313) 313 Prototype IDs (0) 0 Alien Tech Used (0) 0 Bonus (0) 0 TOTAL SCORE: 1283 Bonus ------- None Cogmind --------- Core Integrity 0/400 Matter 215/300 Energy 98/100 System Corruption 0% Temperature Cool (9) Movement Core (50) Location -9/Materials Parts ------- > --- POWER (1) -------- (None) > --- PROPULSION (3) --- (None) > --- UTILITY (3) ------ Structural Scanner > --- WEAPON (2) ------- (None) > --- INVENTORY (5) ---- (None) Peak State ------------ > --- POWER ------------ Light Ion Engine > --- PROPULSION ------- Aluminum Leg Improved Aluminum Leg Hover Unit > --- UTILITY ---------- Seismic Detector Targeting Computer > --- WEAPON ----------- Assault Rifle Heavy Assault Rifle > --- INVENTORY -------- Assault Rifle [Rating: 10] Favorites ----------- Power Light Ion Engine Engine Light Ion Engine Propulsion Compact Wheel Leg Aluminum Leg Wheel Compact Wheel Hover Unit Hover Unit Utility Seismic Detector Device Seismic Detector Processor Targeting Computer Protection Light Armor Plating Weapon Assault Rifle Energy Gun EM Pulse Gun Ballistic Gun Assault Rifle Build | -11 -10 -9 ------- Run | Yrd Mat Mat Slots Evolved 2 | . . 2 Power . | . . . Propulsion 1 | . . 1 Utility 1 | . . 1 Weapon . | . . . Parts Attached 19 | 5 7 7 Power 2 | 1 . 1 Engine 2 | 1 . 1 Core . | . . . Reactor . | . . . Propulsion 5 | 2 1 2 Treads . | . . . Leg 2 | . 1 1 Wheel 2 | 2 . . Hover 1 | . . 1 Flight . | . . . Utility 5 | . 3 2 Device 2 | . 1 1 Storage . | . . . Processor 2 | . 1 1 Hackware . | . . . Protection 1 | . 1 . Artifact . | . . . Weapon 7 | 2 3 2 Energy Gun 2 | 1 1 . Energy Cannon . | . . . Ballistic Gun 5 | 1 2 2 Ballistic Cannon . | . . . Launcher . | . . . Special Weapon . | . . . Impact Weapon . | . . . Slashing Weapon . | . . . Piercing Weapon . | . . . Special Melee Weapon . | . . . Unidentified Prototypes . | . . . Parts Lost 14 | . 6 8 Power 2 | . 1 1 Propulsion 4 | . 2 2 Utility 3 | . 1 2 Weapon 5 | . 2 3 Highest Loss Streak 8 | . 4 8 To Critical Strikes . | . . . Average Slot Usage (%) 67 | . 81 44 Engine 8 | . 12 3 Leg 4 | . . 11 Wheel 14 | . 24 . Device 10 | . 11 10 Processor 2 | . 1 2 Protection 1 | . 3 . Energy Gun 4 | . 8 . Ballistic Gun 17 | . 19 14 Peak Build Rating 10 | 5 7 10 Average Rating 5 | 3 5 4 On Entrance 3 | . 5 4 Naked Turns 19 | . . 19 Heaviest Build 11 | 7 11 9 Greatest Support 26 | 26 26 23 Greatest Overweight (x) 1 | . 1 . Average Overweight (x) . | . . . Largest Inventory Capacity 5 | 5 5 5 Average Capacity 5 | 5 5 5 Most Carried 1 | . 1 1 Average Carried . | . . . Final Capacity 5 | 5 5 5 Final Carried . | . . . Class Distribution -------------------- 91% | Mutant 8% | Scavenger-Mutant Dominant Class ---------------- Mutant | -10/Materials Mutant | -9/Materials Resources | -11 -10 -9 ----------- Run | Yrd Mat Mat Matter Collected 507 | 234 200 73 Remotely . | . . . Salvage Created 483 | . 410 73 Parts 30 | . 24 6 Haulers Intercepted . | . . . Recyclers Shooed 3 | . 3 . Parts Field Recycled . | . . . Retrieved Matter . | . . . Parts Self-Destructed . | . . . Prevented . | . . . Kills | -11 -10 -9 ------- Run | Yrd Mat Mat Combat Hostiles Destroyed 9 | . 8 1 Guns 8 | . 7 1 AOE 1 | . 1 . Classes Destroyed 7 | . 5 2 Worker 1 | . 1 . Recycler 2 | . 2 . Operator 1 | . . 1 Watcher 1 | . 1 . Swarmer 3 | . 3 . Grunt 5 | . 5 . Sentry 1 | . . 1 Best Kill Streak 9 | . 9 2 Combat Bots Only 6 | . 6 1 Max Kills in Single Turn 1 | . 1 1 Gunslinging . | . . . Exploded 1 | . 1 . Melee . | . . . Uniques/NPCs Destroyed . | . . . Combat | -11 -10 -9 -------- Run | Yrd Mat Mat Hostile Shots Fired 171 | . 53 118 Missed 52 | . 10 42 Damage Taken 1373 | . 446 927 Core 485 | . 75 410 Absorbed by Shields . | . . . Core Remaining (%) 85 | 100 70 . Volleys Fired 64 | . 42 22 Largest 2 | . 2 2 Hottest 85 | . 85 43 Shots Fired 118 | . 84 34 Gun 118 | . 84 34 Cannon . | . . . Launcher . | . . . Special . | . . . Kinetic 95 | . 61 34 Thermal 9 | . 9 . Explosive . | . . . Electromagnetic 14 | . 14 . Robot Hit Streak 8 | . 7 8 Robot Miss Streak 7 | . 5 7 Penetration Max . | . . . Secondary Targets 1 | . 1 . Max Gunslinging Chain 1 | . 1 . Shots Hit Robots 66 | . 46 20 Core Hits 29 | . 21 8 Critical Kills . | . . . Critical Parts Destroyed 1 | . . 1 Critical Strikes 1 | . . 1 Destroy 1 | . . 1 Melee Attacks . | . . . Impact . | . . . Slashing . | . . . Piercing . | . . . Sneak Attacks . | . . . Combat Hostiles . | . . . Follow-up Attacks . | . . . Damage Inflicted 978 | . 690 288 Guns 952 | . 668 284 Cannons . | . . . Explosions 22 | . 22 . Melee . | . . . Ramming 4 | . . 4 Kinetic 762 | . 478 284 Thermal 101 | . 101 . Explosive . | . . . Electromagnetic 111 | . 111 . Impact . | . . . Slashing . | . . . Piercing . | . . . Highest Corruption . | . . . Average Corruption . | . . . Corruption Purged . | . . . Corruption Blocked . | . . . Overload Shots . | . . . Overflow Damage 11 | . 11 . Projectiles . | . . . Explosions 11 | . 11 . Melee . | . . . Knockbacks . | . . . Impact . | . . . Kinetic . | . . . Secondary . | . . . Self-Inflicted Damage 31 | . 30 1 Shots 1 | . 1 . Rammed 2 | . 1 1 Targets Rammed 4 | . 1 3 Kicked 2 | . . 2 Crushed . | . . . Highest Temperature 144 | . 144 27 Average Temperature 39 | . 44 13 Received Heat Transfer 648 | . 141 507 Siege Activations . | . . . Robots Corrupted . | . . . Combat Hostiles . | . . . Parts Fried . | . . . Impact Corruptions . | . . . Robots Melted . | . . . Combat Hostiles . | . . . Parts Melted 1 | . 1 . Heat Transferred 235 | . 235 . Parts Sabotaged . | . . . Parts Stolen . | . . . Parts Stripped . | . . . Power Chain Reactions 1 | . 1 . Alert | -11 -10 -9 ------- Run | Yrd Mat Mat Peak Influence 254 | . 254 142 Initial 107 | . . 107 Average 113 | . 125 119 Maximum Alert Level 1 | . 1 . Low Security (%) 82 | 100 68 100 Level 1 17 | . 31 . Level 2 . | . . . Level 3 . | . . . Level 4 . | . . . Level 5 . | . . . High Security . | . . . Max Security . | . . . Squads Dispatched 4 | . 2 2 Investigation 1 | . . 1 Extermination . | . . . Reinforcement 3 | . 2 1 Assault . | . . . Garrison . | . . . Intercept . | . . . Searches Triggered . | . . . Construction Impeded . | . . . Haulers Reinforced . | . . . Active Scanning Responses . | . . . Cargo Convoy Interrupts . | . . . Stealth | -11 -10 -9 --------- Run | Yrd Mat Mat Distress Signals 2 | . 1 1 Communications Jammed . | . . . Distress Signals . | . . . Times Spotted 35 | . 17 18 Peak Tracking Total 12 | . 4 12 Tactical Retreats 2 | . 1 1 Traps | -11 -10 -9 ------- Run | Yrd Mat Mat Traps Triggered 1 | . . 1 Indirectly . | . . . Trap Hack Attempts . | . . . Triggered . | . . . Disarmed . | . . . Reprogrammed . | . . . Reused . | . . . Traps Extracted . | . . . Installed . | . . . Triggered . | . . . Machines | -11 -10 -9 ---------- Run | Yrd Mat Mat Machines Disabled 1 | . . 1 Max in Single Turn 1 | . . 1 Machines Repaired . | . . . Machines Dismantled . | . . . Machines Sabotaged . | . . . Overloaded Fab Kills . | . . . Hacking | -11 -10 -9 --------- Run | Yrd Mat Mat Machines Accessed 4 | . 4 . Terminals 4 | . 4 . Fabricators . | . . . Repair Stations . | . . . Recycling Units . | . . . Scanalyzers . | . . . Garrison Access . | . . . Total Hacks 11 | . 11 . Successful 3 | . 3 . Failed 8 | . 8 . Catastrophic 1 | . 1 . Database Lockouts . | . . . Manual 1 | . 1 . Terminals 11 | . 11 . Fabricators . | . . . Repair Stations . | . . . Recycling Units . | . . . Scanalyzers . | . . . Garrison Access . | . . . Terminal Hacks 3 | . 3 . Alert Level 1 | . 1 . Hauler Manifests 1 | . 1 . Registered Components 1 | . 1 . Fabricator Hacks . | . . . Repair Station Hacks . | . . . Recycling Unit Hacks . | . . . Scanalyzer . | . . . Garrison Access Hacks . | . . . Unauthorized Hacks . | . . . Terminals . | . . . Fabricators . | . . . Repair Stations . | . . . Recycling Units . | . . . Scanalyzers . | . . . Garrison Access . | . . . Data Cores Recovered . | . . . Used . | . . . Hacking Detections 4 | . 4 . Full Trace Events . | . . . Feedback Events . | . . . Feedback Blocked . | . . . Robot Schematics Acquired . | . . . Robots Built . | . . . Authchips . | . . . Time . | . . . Total Robot Build Rating . | . . . Part Schematics Acquired . | . . . Parts Built . | . . . Authchips . | . . . Time . | . . . Total Part Build Rating . | . . . Parts Repaired . | . . . Time . | . . . Parts Recycled . | . . . Recycled Matter . | . . . Retrieved Matter . | . . . Retrieved Components . | . . . Parts Scanalyzed . | . . . Part Schematics Acquired . | . . . Parts Damaged . | . . . Bothacking | -11 -10 -9 ------------ Run | Yrd Mat Mat Used RIF Installer . | . . . Robots Hacked . | . . . Non-combat . | . . . Combat . | . . . Robot Hacks Applied . | . . . Relay Couplers Released . | . . . Fabnet Peak Effective % . | . . . Robots Rewired . | . . . Allies Hacked . | . . . Hacks Repelled . | . . . Allies | -11 -10 -9 -------- Run | Yrd Mat Mat Total Allies . | . . . Largest Group . | . . . Highest-Rated Group . | . . . Highest-Rated Ally . | . . . Total Orders . | . . . Ally Attacks . | . . . Total Damage . | . . . Kills . | . . . Allies Corrupted . | . . . Allies Melted . | . . . Intel | -11 -10 -9 ------- Run | Yrd Mat Mat Robot Analysis Total . | . . . Derelict Logs Recovered . | . . . Drone Launches . | . . . Drone Recoveries . | . . . Exploration | -11 -10 -9 ------------- Run | Yrd Mat Mat Turns Passed 643 | 52 364 227 Spaces Moved 474 | 49 232 193 Core 105 | 1 4 100 Treads . | . . . Legs 100 | . 16 84 Wheels 260 | 48 212 . Hover 9 | . . 9 Flight . | . . . Fastest Speed 50 | 50 90 50 Average Speed 87 | 88 92 81 Slowest Speed 120 | 90 120 120 Overloaded Moves . | . . . Propulsion Burnouts . | . . . Robots Hopped . | . . . Cave-ins Triggered . | . . . Exploration Rate (%) 24 | 5 49 20 Regions Visited 2 Branch Regions . Pre-discovered Areas . | . . . Known Exits Taken . | . . . Unknown Exits Taken 2 | 1 1 . Scrap Searched . | . . . Spaces Dug . | . . . Terrain Destroyed 2 | . 2 . Melee . | . . . Projectile . | . . . AOE 2 | . 2 . Terrain Rammed . | . . . Walls Destroyed . | . . . Machines Disabled . | . . . Actions | -11 -10 -9 --------- Run | Yrd Mat Mat Total 577 | 55 296 226 Wait 14 | 2 12 . Move 472 | 48 231 193 Hop . | . . . Pick Up 1 | . 1 . Fast Attach 17 | 5 6 6 Attach 2 | . 1 1 Detach 1 | . . 1 Swap . | . . . Drop 2 | . 2 . Fire 64 | . 42 22 Melee . | . . . Ram 2 | . 1 1 Kick 2 | . . 2 Crush . | . . . Escape Stasis . | . . . Rewire . | . . . Trap . | . . . Miscellaneous . | . . . Route ------- -11/Scrapyard -10/Materials -9/Materials History --------- Turn | Location | Event 14 | -11/Scrapyard | Discovered new exit (range 14) 53 | -11/Scrapyard | Entered Materials 301 | -10/Materials | Build established: Mutant 399 | -10/Materials | Discovered new exit (range 12) 417 | -10/Materials | Lost 4 parts (1p2n1w) 417 | -10/Materials | Entered another Materials area 417 | -9/Materials | Evolved 2 slots: Propulsion x1, Utility x1 592 | -9/Materials | Released all parts (1) 601 | -9/Materials | Core integrity fell below 50% 621 | -9/Materials | Lost 8 parts (1p2n2u3w) 639 | -9/Materials | Core integrity fell below 20% 644 | -9/Materials | Destroyed by Y-45 Defender with Heavy Assault Rifle Last Messages --------------- 00545_ Hover Unit destroyed. 00548_ G-34 Mercenary suffers critical hit (Destroy). 00548_ Destroyed Ion Engine. 00555_ Aluminum Leg destroyed. 00559_ Hvy. Assault Rifle destroyed. 00566_ Assault Rifle destroyed. 00570_ Targeting Computer destroyed. 00572_ Material Processor disabled. 00582_ Lgt. Ion Engine destroyed. 00588_ Assault Rifle destroyed. 00590_ Kicked G-34 Mercenary. 00590_ Seismic Detector destroyed. 00590_ Critical hit (Burn: +37). 00591_ Kicked G-34 Mercenary out of the way. 00592_ Released Imp. Aluminum Leg. 00595_ Slammed into U-05 Engineer. 00608_ Critical hit (Burn: +37). 00611_ Acquired Structural Scanner. 00616_ G-34 Mercenary destroyed. Map ----- +----------------------------------------------------+ | ?????????????????????????????????????????????????? | | ?????????????????????????????????????????????????? | | ?????????????????????????????????????????????????? | | ?????????????????????????????????????????????????? | | ?????????????????????????????????????????????????? | | ?????????????????????????????????????????????????? | | ?????????????????????????????????????????????????? | | ?????????????????????????????????????????????????? | | ?????????????????????????????????????????????????? | | ???????????????????? ????????????????????????????? | | ???????????????????? ????????????????????????????? | | ???????????????????? ????????????????????????????? | | ???????????????????? ????????????????????????????? | | ???????????????????# ????????????????????????????? | | ???????????????????# ????????????????????????????? | | ??????????????????## ????????????????????????????? | | ??????????????????## #???????????????????????????? | | ??????????????????## #???????????????????????????? | | ??????????????????## #???????????????????????????? | | ? ######???????##k######??????????????????????? | | ?##########???????## ######??????????????????????? | | ?## ########### ##??????????????????????? | | ?## ########### ##??????????????????????? | | ?## + ###########?????????????? | | ?## ! ########### ###########?????????????? | | ?## !! ########### @ u u a s s ???????? | | ?## ############Y ######### s ???????? | | ?#######+## # ######### ???????????????? | | ?####### ## """ = # ##???????????????????????? | | ??????## + """"" %+ ##?#####?????????????????? | | ??????##### """"" [# # """ """????????????????? | | ??????##### """"" # # """ """ # ?????????????? | | ?????????## """ # # """ """ # ?????????????? | | ?????????## # # # ?????????????? | | ?????????## ] / + # ?????????????? | | ?????#########/###### # # ?????????????? | | ????? ######## ###### # # ?????????????? | | ????? # ##??## # # ?????????????? | | ????? """ # ###### ############?????????????? | | ???## """ # ###### ######################???? | | ???## """ # #???? | | ???## + #???? | | ???## """ # #???? | | ???## """ ####+#############+######+### #???? | | ????? """ # #### = # ## !#???? | | ????? # # ?# " #" ## #???? | | ?????######### | ##?# """"" #T ## ##### | | ?????######### ##?# """"" #" # | | ????????????## ##?# """"" # ## | | ????????????## ##?# """ #! ## | +----------------------------------------------------+ Best States ------------- Heat Dissipation 28 Energy Generation 10 Energy Capacity 125 Matter Stores 300 Matter Capacity 300 Sight Range 16 Terrain Scan Density 10 Armor Coverage 150 Evasion (%) 55 Targeting Accuracy 5 Item Schematics ----------------- None Robot Schematics ------------------ None Fabricated ------------ Nothing Alien Tech Used ----------------- None Achievements -------------- None Challenges ------------ None Game ------ Seed ShadeGrapheneRecalibrator Manual? 0 Play Time 00:14:16 Cumulative 22.6 hours Start 2024.08.19 @ 23:16:16 End 2024.08.19 @ 23:31:57 Sessions 1 Manual Loads 0 Difficulty Rogue Special Mode None Game No. 18 Rogue 18 Adventurer 0 Explorer 0 Win Type - Total 0 Types 0/0/0/0/0/0/0/0/0 Lore% 12 Gallery% 22 Achievement% 23 Wizard Run 0 Options --------- Layout 1 ASCII 0 Keyboard 0 Movement Numpad Keybinds 0 Fullscreen 1 Font 24/Smallcaps Map View 50x35 Zoom Use 0% Tactical HUD 1 Map Filters NONE Filters NONE Steam 1 RUN: 01dd8703-6647-41f4-a3e3-fe6d3834beb4